[Event "Titled Tuesday Blitz November 30 2021"]
[White "Kravtsiv, Martyn"]
[Black "Galchenko, Matvey"]
[WhiteFideId "14113147"]
[BlackFideId "24175480"]
[WhiteElo "2660"]
[BlackElo "2453"]
[Result "1-0"]
[Round "06"]
[TimeControl "180+1"]
[Date "2021.11.30"]
[WhiteClock "0:00:14"]
[BlackClock "0:00:07"]

1. e4 {[%clk 0:03:00]}  e6 {[%clk 0:02:55]} 2. d4 {[%clk 0:02:58]}  d5 {[%clk 0:02:55]} 3. Nc3 {[%clk 0:02:58]}  Bb4 {[%clk 0:02:52]} 4. e5 {[%clk 0:02:56]}  Ne7 {[%clk 0:02:51]} 5. Qg4 {[%clk 0:02:53]}  c5 {[%clk 0:02:51]} 6. Nf3 {[%clk 0:02:33]}  cxd4 {[%clk 0:02:41]} 7. Nxd4 {[%clk 0:02:33]}  O-O {[%clk 0:02:37]} 8. Bd3 {[%clk 0:02:25]}  Nd7 {[%clk 0:02:30]} 9. Nf3 {[%clk 0:02:14]}  Bxc3+ {[%clk 0:02:25]} 10. bxc3 {[%clk 0:02:15]}  Ng6 {[%clk 0:02:26]} 11. Bxg6 {[%clk 0:02:00]}  fxg6 {[%clk 0:02:14]} 12. Ba3 {[%clk 0:01:59]}  Rf5 {[%clk 0:02:10]} 13. Bd6 {[%clk 0:02:00]}  Nf6 {[%clk 0:02:09]} 14. Qh4 {[%clk 0:01:54]}  Rh5 {[%clk 0:02:07]} 15. Qf4 {[%clk 0:01:44]}  Rf5 {[%clk 0:01:46]} 16. Qh4 {[%clk 0:01:43]}  Rh5 {[%clk 0:01:24]} 17. Qb4 {[%clk 0:01:23]}  Ne4 {[%clk 0:01:23]} 18. h4 {[%clk 0:01:17]}  Rf5 {[%clk 0:01:16]} 19. c4 {[%clk 0:01:12]}  a5 {[%clk 0:01:12]} 20. Qa3 {[%clk 0:01:11]}  Nxd6 {[%clk 0:01:01]} 21. exd6 {[%clk 0:01:09]}  dxc4 {[%clk 0:01:00]} 22. O-O-O {[%clk 0:01:07]}  b5 {[%clk 0:00:57]} 23. Rhe1 {[%clk 0:01:01]}  b4 {[%clk 0:00:49]} 24. Qe3 {[%clk 0:01:00]}  Bd7 {[%clk 0:00:50]} 25. Ne5 {[%clk 0:00:59]}  Rc8 {[%clk 0:00:41]} 26. g4 {[%clk 0:00:58]}  Rf6 {[%clk 0:00:39]} 27. Qa7 {[%clk 0:00:50]}  Rf7 {[%clk 0:00:08]} 28. Kb1 {[%clk 0:00:37]}  b3 {[%clk 0:00:08]} 29. Nxf7 {[%clk 0:00:32]}  bxc2+ {[%clk 0:00:06]} 30. Kxc2 {[%clk 0:00:32]}  Ba4+ {[%clk 0:00:06]} 31. Kc1 {[%clk 0:00:20]}  Qf6 {[%clk 0:00:07]} 32. Qd4 {[%clk 0:00:14]}  Bxd1 {[%clk 0:00:07]} 33. Qxf6 {[%clk 0:00:14]}  gxf6 {[%clk 0:00:08]} 34. d7 {[%clk 0:00:14]}  Rb8 {[%clk 0:00:07]} 35. Rxd1 {[%clk 0:00:14]} 1-0


[Site "https://www.chess.com"]

[Event "Titled Tuesday Blitz November 30 2021"]
[White "Makarian, Rudik"]
[Black "Tanenbaum, Zachary"]
[WhiteFideId "44105681"]
[BlackFideId "2060850"]
[WhiteElo "2486"]
[BlackElo "2168"]
[Result "1-0"]
[Round "06"]
[TimeControl "180+1"]
[Date "2021.11.30"]
[WhiteClock "0:01:59"]
[BlackClock "0:00:11"]

1. d4 {[%clk 0:03:00]}  d5 {[%clk 0:03:00]} 2. c4 {[%clk 0:03:01]}  dxc4 {[%clk 0:03:00]} 3. Nf3 {[%clk 0:03:02]}  a6 {[%clk 0:03:01]} 4. e3 {[%clk 0:02:58]}  Nf6 {[%clk 0:03:01]} 5. Bxc4 {[%clk 0:02:57]}  e6 {[%clk 0:03:02]} 6. O-O {[%clk 0:02:57]}  c5 {[%clk 0:03:03]} 7. Nbd2 {[%clk 0:02:57]}  Nc6 {[%clk 0:03:02]} 8. dxc5 {[%clk 0:02:54]}  Bxc5 {[%clk 0:03:02]} 9. a3 {[%clk 0:02:54]}  O-O {[%clk 0:02:58]} 10. b4 {[%clk 0:02:53]}  Be7 {[%clk 0:02:58]} 11. Bb2 {[%clk 0:02:53]}  b5 {[%clk 0:02:58]} 12. Be2 {[%clk 0:02:52]}  Bb7 {[%clk 0:02:58]} 13. Rc1 {[%clk 0:02:47]}  Rc8 {[%clk 0:02:58]} 14. Rc2 {[%clk 0:02:47]}  Qb6 {[%clk 0:02:36]} 15. Qb1 {[%clk 0:02:44]}  Rc7 {[%clk 0:02:30]} 16. Ng5 {[%clk 0:02:38]}  g6 {[%clk 0:02:03]} 17. Nge4 {[%clk 0:02:34]}  Nxe4 {[%clk 0:02:02]} 18. Nxe4 {[%clk 0:02:35]}  f5 {[%clk 0:01:23]} 19. Nc5 {[%clk 0:02:33]}  Bxc5 {[%clk 0:01:00]} 20. Rxc5 {[%clk 0:02:34]}  Ne7 {[%clk 0:00:49]} 21. Qc2 {[%clk 0:02:16]}  Rxc5 {[%clk 0:00:47]} 22. bxc5 {[%clk 0:02:17]}  Qc6 {[%clk 0:00:29]} 23. Bf3 {[%clk 0:02:16]}  Nd5 {[%clk 0:00:29]} 24. Ba1 {[%clk 0:02:06]}  Rc8 {[%clk 0:00:28]} 25. Qb2 {[%clk 0:02:04]}  Qc7 {[%clk 0:00:12]} 26. Qh8+ {[%clk 0:02:00]}  Kf7 {[%clk 0:00:13]} 27. Qxh7+ {[%clk 0:02:01]}  Ke8 {[%clk 0:00:13]} 28. Qxg6+ {[%clk 0:02:00]}  Qf7 {[%clk 0:00:13]} 29. Qh6 {[%clk 0:02:00]}  Rxc5 {[%clk 0:00:11]} 30. Bh5 {[%clk 0:01:59]} 1-0


[Site "https://www.chess.com"]

[Event "Titled Tuesday Blitz November 30 2021"]
[White "Manafov, Vugar"]
[Black "Petrovskyi, Vadym"]
[WhiteFideId "13410814"]
[BlackFideId "14165210"]
[WhiteElo "2277"]
[BlackElo "2377"]
[Result "0-1"]
[Round "06"]
[TimeControl "180+1"]
[Date "2021.11.30"]
[WhiteClock "0:01:18"]
[BlackClock "0:02:14"]

1. d4 {[%clk 0:03:00]}  Nf6 {[%clk 0:02:59]} 2. c4 {[%clk 0:03:00]}  g6 {[%clk 0:03:00]} 3. Nc3 {[%clk 0:03:01]}  Bg7 {[%clk 0:03:00]} 4. g3 {[%clk 0:03:01]}  O-O {[%clk 0:03:00]} 5. Bg2 {[%clk 0:03:01]}  d6 {[%clk 0:03:00]} 6. Nf3 {[%clk 0:03:02]}  Nbd7 {[%clk 0:03:00]} 7. O-O {[%clk 0:03:02]}  e5 {[%clk 0:03:00]} 8. e4 {[%clk 0:03:03]}  c6 {[%clk 0:03:00]} 9. b3 {[%clk 0:03:03]}  Re8 {[%clk 0:02:59]} 10. Bb2 {[%clk 0:03:03]}  exd4 {[%clk 0:02:58]} 11. Nxd4 {[%clk 0:03:04]}  Nc5 {[%clk 0:02:58]} 12. Re1 {[%clk 0:03:04]}  a5 {[%clk 0:02:58]} 13. Qc2 {[%clk 0:03:04]}  Qe7 {[%clk 0:02:56]} 14. Rad1 {[%clk 0:03:00]}  h5 {[%clk 0:02:56]} 15. Nf3 {[%clk 0:02:50]}  Bg4 {[%clk 0:02:53]} 16. h3 {[%clk 0:02:40]}  Bxf3 {[%clk 0:02:53]} 17. Bxf3 {[%clk 0:02:41]}  h4 {[%clk 0:02:54]} 18. gxh4 {[%clk 0:02:37]}  Nfd7 {[%clk 0:02:52]} 19. Bg2 {[%clk 0:02:30]}  Qxh4 {[%clk 0:02:44]} 20. Rxd6 {[%clk 0:02:25]}  Ne5 {[%clk 0:02:41]} 21. Ne2 {[%clk 0:02:17]}  Ned3 {[%clk 0:02:31]} 22. Rxd3 {[%clk 0:01:41]}  Nxd3 {[%clk 0:02:31]} 23. Qxd3 {[%clk 0:01:41]}  Bxb2 {[%clk 0:02:31]} 24. Qd7 {[%clk 0:01:39]}  Re7 {[%clk 0:02:26]} 25. Qd2 {[%clk 0:01:38]}  Bg7 {[%clk 0:02:25]} 26. Rd1 {[%clk 0:01:32]}  Rae8 {[%clk 0:02:23]} 27. Qxa5 {[%clk 0:01:32]}  Re5 {[%clk 0:02:17]} 28. Qc7 {[%clk 0:01:32]}  Rg5 {[%clk 0:02:15]} 29. Kf1 {[%clk 0:01:18]}  Rxg2 {[%clk 0:02:14]} 30. Kxg2 {[%clk 0:01:18]}  Qxe4+ {[%clk 0:02:14]} 0-1


[Site "https://www.chess.com"]

[Event "Titled Tuesday Blitz November 30 2021"]
[White "Narayanan.S.L"]
[Black "Papasimakopoulos, Alexandros"]
[WhiteFideId "5058422"]
[BlackFideId "4244125"]
[WhiteElo "2570"]
[BlackElo "2394"]
[Result "1/2-1/2"]
[Round "06"]
[TimeControl "180+1"]
[Date "2021.11.30"]
[WhiteClock "0:00:05"]
[BlackClock "0:00:06"]

1. a3 {[%clk 0:03:00]}  d5 {[%clk 0:02:56]} 2. d4 {[%clk 0:02:59]}  Nf6 {[%clk 0:02:51]} 3. Nf3 {[%clk 0:02:58]}  Bf5 {[%clk 0:02:50]} 4. e3 {[%clk 0:02:55]}  e6 {[%clk 0:02:50]} 5. Bd3 {[%clk 0:02:55]}  Bd6 {[%clk 0:02:49]} 6. c4 {[%clk 0:02:54]}  c6 {[%clk 0:02:48]} 7. Bxf5 {[%clk 0:02:53]}  exf5 {[%clk 0:02:49]} 8. Qd3 {[%clk 0:02:53]}  g6 {[%clk 0:02:48]} 9. Nc3 {[%clk 0:02:52]}  dxc4 {[%clk 0:02:34]} 10. Qxc4 {[%clk 0:02:51]}  Nbd7 {[%clk 0:02:35]} 11. O-O {[%clk 0:02:50]}  Nb6 {[%clk 0:02:33]} 12. Qb3 {[%clk 0:02:48]}  O-O {[%clk 0:02:33]} 13. Bd2 {[%clk 0:02:46]}  Qe7 {[%clk 0:02:22]} 14. Rfd1 {[%clk 0:02:45]}  Nbd5 {[%clk 0:02:19]} 15. Rac1 {[%clk 0:02:44]}  h5 {[%clk 0:02:18]} 16. Nxd5 {[%clk 0:02:30]}  Nxd5 {[%clk 0:02:17]} 17. Ne1 {[%clk 0:02:30]}  f4 {[%clk 0:02:14]} 18. Nc2 {[%clk 0:02:19]}  fxe3 {[%clk 0:02:14]} 19. Nxe3 {[%clk 0:02:18]}  Nf4 {[%clk 0:01:55]} 20. Re1 {[%clk 0:02:17]}  Qd7 {[%clk 0:01:51]} 21. Nc4 {[%clk 0:02:08]}  Bc7 {[%clk 0:01:42]} 22. Rcd1 {[%clk 0:01:58]}  Nd5 {[%clk 0:01:37]} 23. Ne5 {[%clk 0:01:55]}  Bxe5 {[%clk 0:01:36]} 24. dxe5 {[%clk 0:01:55]}  Rfe8 {[%clk 0:01:34]} 25. Qf3 {[%clk 0:01:54]}  Qg4 {[%clk 0:01:31]} 26. Qg3 {[%clk 0:01:30]}  Qxg3 {[%clk 0:01:31]} 27. hxg3 {[%clk 0:01:30]}  Rad8 {[%clk 0:01:31]} 28. Bg5 {[%clk 0:01:28]}  f6 {[%clk 0:01:19]} 29. Bxf6 {[%clk 0:01:00]}  Nxf6 {[%clk 0:01:18]} 30. Rxd8 {[%clk 0:01:00]}  Rxd8 {[%clk 0:01:18]} 31. exf6 {[%clk 0:01:01]}  Rd7 {[%clk 0:01:17]} 32. Re8+ {[%clk 0:00:54]}  Kf7 {[%clk 0:01:16]} 33. Rb8 {[%clk 0:00:54]}  Kxf6 {[%clk 0:01:15]} 34. Kh2 {[%clk 0:00:53]}  b6 {[%clk 0:01:09]} 35. b4 {[%clk 0:00:49]}  Rd3 {[%clk 0:01:05]} 36. Rc8 {[%clk 0:00:47]}  Rc3 {[%clk 0:01:01]} 37. Rc7 {[%clk 0:00:45]}  Rxa3 {[%clk 0:00:57]} 38. Rxc6+ {[%clk 0:00:44]}  Kg5 {[%clk 0:00:56]} 39. f4+ {[%clk 0:00:42]}  Kf5 {[%clk 0:00:54]} 40. b5 {[%clk 0:00:35]}  Rb3 {[%clk 0:00:51]} 41. Rc7 {[%clk 0:00:35]}  Rxb5 {[%clk 0:00:52]} 42. Rxa7 {[%clk 0:00:35]}  Rc5 {[%clk 0:00:52]} 43. Rf7+ {[%clk 0:00:34]}  Ke6 {[%clk 0:00:49]} 44. Rb7 {[%clk 0:00:34]}  Rc6 {[%clk 0:00:49]} 45. Kh3 {[%clk 0:00:34]}  Kf6 {[%clk 0:00:36]} 46. g4 {[%clk 0:00:32]}  hxg4+ {[%clk 0:00:28]} 47. Kxg4 {[%clk 0:00:33]}  Rd6 {[%clk 0:00:28]} 48. g3 {[%clk 0:00:33]}  Rc6 {[%clk 0:00:28]} 49. Rd7 {[%clk 0:00:30]}  Re6 {[%clk 0:00:26]} 50. Kf3 {[%clk 0:00:28]}  Re7 {[%clk 0:00:21]} 51. Rd5 {[%clk 0:00:26]}  Re6 {[%clk 0:00:18]} 52. g4 {[%clk 0:00:24]}  Rc6 {[%clk 0:00:18]} 53. g5+ {[%clk 0:00:19]}  Ke6 {[%clk 0:00:19]} 54. Rb5 {[%clk 0:00:19]}  Kd7 {[%clk 0:00:17]} 55. Ke4 {[%clk 0:00:16]}  Ke6 {[%clk 0:00:17]} 56. Rb4 {[%clk 0:00:15]}  Rd6 {[%clk 0:00:16]} 57. Rc4 {[%clk 0:00:14]}  Kf7 {[%clk 0:00:06]} 58. Ke5 {[%clk 0:00:13]}  Re6+ {[%clk 0:00:06]} 59. Kd5 {[%clk 0:00:14]}  Re7 {[%clk 0:00:06]} 60. Rc6 {[%clk 0:00:14]}  Rb7 {[%clk 0:00:07]} 61. Rc4 {[%clk 0:00:12]}  b5 {[%clk 0:00:06]} 62. Rb4 {[%clk 0:00:12]}  Kg7 {[%clk 0:00:06]} 63. Kc6 {[%clk 0:00:12]}  Rb8 {[%clk 0:00:06]} 64. Kc7 {[%clk 0:00:12]}  Rf8 {[%clk 0:00:06]} 65. Kd6 {[%clk 0:00:11]}  Rf5 {[%clk 0:00:07]} 66. Ke6 {[%clk 0:00:11]}  Kg8 {[%clk 0:00:07]} 67. Rd4 {[%clk 0:00:11]}  Kg7 {[%clk 0:00:07]} 68. Re4 {[%clk 0:00:11]}  Kg8 {[%clk 0:00:08]} 69. Kd6 {[%clk 0:00:11]}  Kg7 {[%clk 0:00:08]} 70. Kc6 {[%clk 0:00:11]}  Kf7 {[%clk 0:00:09]} 71. Kc7 {[%clk 0:00:10]}  b4 {[%clk 0:00:08]} 72. Rxb4 {[%clk 0:00:10]}  Ke6 {[%clk 0:00:07]} 73. Rd4 {[%clk 0:00:09]}  Rc5+ {[%clk 0:00:07]} 74. Kb6 {[%clk 0:00:09]}  Rc1 {[%clk 0:00:06]} 75. Kb5 {[%clk 0:00:07]}  Kf5 {[%clk 0:00:07]} 76. Rd6 {[%clk 0:00:04]}  Kxf4 {[%clk 0:00:05]} 77. Rxg6 {[%clk 0:00:04]}  Kf5 {[%clk 0:00:06]} 78. Rg8 {[%clk 0:00:03]}  Rg1 {[%clk 0:00:06]} 79. g6 {[%clk 0:00:04]}  Kf6 {[%clk 0:00:06]} 80. Kc6 {[%clk 0:00:03]}  Rxg6 {[%clk 0:00:06]} 81. Rc8 {[%clk 0:00:02]}  Ke5+ {[%clk 0:00:05]} 82. Kb7 {[%clk 0:00:03]}  Re6 {[%clk 0:00:05]} 83. Rc7 {[%clk 0:00:04]}  Kd6 {[%clk 0:00:06]} 84. Rc6+ {[%clk 0:00:04]}  Kd7 {[%clk 0:00:06]} 85. Rxe6 {[%clk 0:00:05]}  Kxe6 {[%clk 0:00:06]} 1/2-1/2


[Site "https://www.chess.com"]

[Event "Titled Tuesday Blitz November 30 2021"]
[White "Onyshchuk, Volodymyr"]
[Black "Andreikin, Dmitry"]
[WhiteFideId "14114038"]
[BlackFideId "4158814"]
[WhiteElo "2603"]
[BlackElo "2736"]
[Result "1-0"]
[Round "06"]
[TimeControl "180+1"]
[Date "2021.11.30"]
[WhiteClock "0:00:43"]
[BlackClock "0:00:02"]

1. e4 {[%clk 0:03:00]}  c5 {[%clk 0:03:00]} 2. Nf3 {[%clk 0:03:01]}  e6 {[%clk 0:03:00]} 3. b3 {[%clk 0:03:00]}  b6 {[%clk 0:02:56]} 4. Bb2 {[%clk 0:03:00]}  Bb7 {[%clk 0:02:57]} 5. Nc3 {[%clk 0:03:01]}  Nc6 {[%clk 0:02:57]} 6. g3 {[%clk 0:03:00]}  d6 {[%clk 0:02:53]} 7. Bg2 {[%clk 0:03:00]}  Nf6 {[%clk 0:02:54]} 8. O-O {[%clk 0:03:00]}  Be7 {[%clk 0:02:54]} 9. e5 {[%clk 0:02:59]}  dxe5 {[%clk 0:02:47]} 10. Nxe5 {[%clk 0:02:59]}  Qc8 {[%clk 0:02:47]} 11. f4 {[%clk 0:02:59]}  O-O {[%clk 0:02:46]} 12. Qf3 {[%clk 0:02:44]}  Na5 {[%clk 0:02:37]} 13. Qe2 {[%clk 0:02:44]}  Nc6 {[%clk 0:02:34]} 14. Qf3 {[%clk 0:02:33]}  Na5 {[%clk 0:02:33]} 15. Qf2 {[%clk 0:02:34]}  Nc6 {[%clk 0:02:31]} 16. Rae1 {[%clk 0:02:32]}  Nd4 {[%clk 0:02:27]} 17. d3 {[%clk 0:02:32]}  c4 {[%clk 0:02:09]} 18. Ne4 {[%clk 0:02:17]}  Bxe4 {[%clk 0:01:58]} 19. dxe4 {[%clk 0:02:13]}  Rd8 {[%clk 0:01:39]} 20. Kh1 {[%clk 0:02:05]}  Bc5 {[%clk 0:01:28]} 21. b4 {[%clk 0:02:00]}  c3 {[%clk 0:00:56]} 22. Bxc3 {[%clk 0:01:54]}  Nb5 {[%clk 0:00:56]} 23. bxc5 {[%clk 0:01:53]}  Nxc3 {[%clk 0:00:57]} 24. c6 {[%clk 0:01:52]}  Nxa2 {[%clk 0:00:53]} 25. g4 {[%clk 0:01:09]}  Nb4 {[%clk 0:00:51]} 26. g5 {[%clk 0:01:09]}  Ne8 {[%clk 0:00:50]} 27. f5 {[%clk 0:01:09]}  Nc7 {[%clk 0:00:22]} 28. Nxf7 {[%clk 0:00:59]}  Kxf7 {[%clk 0:00:19]} 29. fxe6+ {[%clk 0:00:54]}  Kg8 {[%clk 0:00:19]} 30. e7 {[%clk 0:00:53]}  Re8 {[%clk 0:00:18]} 31. Qf7+ {[%clk 0:00:51]}  Kh8 {[%clk 0:00:18]} 32. Bh3 {[%clk 0:00:50]}  Qb8 {[%clk 0:00:14]} 33. Bd7 {[%clk 0:00:47]}  Rg8 {[%clk 0:00:12]} 34. Re3 {[%clk 0:00:47]}  Nxc6 {[%clk 0:00:04]} 35. Rh3 {[%clk 0:00:43]}  Ne5 {[%clk 0:00:01]} 36. Rxh7+ {[%clk 0:00:43]}  Kxh7 {[%clk 0:00:02]} 37. Qh5# {[%clk 0:00:43]} 1-0


[Site "https://www.chess.com"]

[Event "Titled Tuesday Blitz November 30 2021"]
[White "Perez Ponsa, Federico"]
[Black "Mitrabha, Guha"]
[WhiteFideId "117927"]
[BlackFideId "5057000"]
[WhiteElo "2672"]
[BlackElo "2334"]
[Result "0-1"]
[Round "06"]
[TimeControl "180+1"]
[Date "2021.11.30"]
[WhiteClock "0:00:03"]
[BlackClock "0:00:28"]

1. e4 {[%clk 0:02:48]}  c6 {[%clk 0:02:57]} 2. d4 {[%clk 0:02:47]}  d5 {[%clk 0:02:57]} 3. e5 {[%clk 0:02:47]}  Bf5 {[%clk 0:02:57]} 4. Nf3 {[%clk 0:02:47]}  e6 {[%clk 0:02:58]} 5. Be2 {[%clk 0:02:47]}  Ne7 {[%clk 0:02:58]} 6. c3 {[%clk 0:02:48]}  Nd7 {[%clk 0:02:57]} 7. O-O {[%clk 0:02:47]}  c5 {[%clk 0:02:57]} 8. dxc5 {[%clk 0:02:46]}  Nxc5 {[%clk 0:02:56]} 9. Be3 {[%clk 0:02:35]}  Nc6 {[%clk 0:02:55]} 10. c4 {[%clk 0:02:29]}  dxc4 {[%clk 0:02:54]} 11. Qc1 {[%clk 0:02:28]}  Bd3 {[%clk 0:02:46]} 12. Bxd3 {[%clk 0:02:26]}  Nxd3 {[%clk 0:02:12]} 13. Qxc4 {[%clk 0:02:03]}  Ndb4 {[%clk 0:02:08]} 14. Nc3 {[%clk 0:01:58]}  Qd3 {[%clk 0:02:07]} 15. Qg4 {[%clk 0:01:55]}  Qg6 {[%clk 0:02:03]} 16. Qxg6 {[%clk 0:01:47]}  hxg6 {[%clk 0:02:04]} 17. Rad1 {[%clk 0:01:48]}  Na6 {[%clk 0:01:51]} 18. Ne4 {[%clk 0:01:32]}  Nc7 {[%clk 0:01:46]} 19. Bg5 {[%clk 0:01:19]}  Nd5 {[%clk 0:01:42]} 20. g3 {[%clk 0:01:19]}  Be7 {[%clk 0:01:32]} 21. Bxe7 {[%clk 0:01:19]}  Kxe7 {[%clk 0:01:33]} 22. h4 {[%clk 0:01:15]}  Rhd8 {[%clk 0:01:27]} 23. a3 {[%clk 0:01:11]}  Na5 {[%clk 0:01:23]} 24. Nd6 {[%clk 0:01:05]}  Rd7 {[%clk 0:01:20]} 25. b4 {[%clk 0:01:04]}  Nc6 {[%clk 0:01:20]} 26. Ne4 {[%clk 0:00:54]}  Nb6 {[%clk 0:01:17]} 27. Nc5 {[%clk 0:00:52]}  Rc7 {[%clk 0:01:16]} 28. Rd3 {[%clk 0:00:46]}  a5 {[%clk 0:01:15]} 29. Rb1 {[%clk 0:00:41]}  axb4 {[%clk 0:01:15]} 30. axb4 {[%clk 0:00:42]}  Nd5 {[%clk 0:01:15]} 31. Rdb3 {[%clk 0:00:35]}  b6 {[%clk 0:01:00]} 32. Ne4 {[%clk 0:00:35]}  Ra4 {[%clk 0:01:00]} 33. Nd6 {[%clk 0:00:30]}  Nxe5 {[%clk 0:00:53]} 34. Nxe5 {[%clk 0:00:26]}  Kxd6 {[%clk 0:00:54]} 35. Nf3 {[%clk 0:00:27]}  Rc4 {[%clk 0:00:51]} 36. b5 {[%clk 0:00:24]}  f6 {[%clk 0:00:51]} 37. Nd2 {[%clk 0:00:22]}  Rcb4 {[%clk 0:00:50]} 38. Kg2 {[%clk 0:00:20]}  Rxb3 {[%clk 0:00:49]} 39. Rxb3 {[%clk 0:00:20]}  Rd4 {[%clk 0:00:46]} 40. Nf3 {[%clk 0:00:18]}  Rb4 {[%clk 0:00:45]} 41. Ra3 {[%clk 0:00:19]}  Rxb5 {[%clk 0:00:43]} 42. Ra7 {[%clk 0:00:19]}  Nc7 {[%clk 0:00:42]} 43. Nd2 {[%clk 0:00:19]}  Rb4 {[%clk 0:00:40]} 44. Kf3 {[%clk 0:00:19]}  f5 {[%clk 0:00:38]} 45. Ke3 {[%clk 0:00:19]}  b5 {[%clk 0:00:36]} 46. f4 {[%clk 0:00:18]}  Ra4 {[%clk 0:00:29]} 47. Rb7 {[%clk 0:00:15]}  Ra8 {[%clk 0:00:28]} 48. Rb6+ {[%clk 0:00:03]}  Kc5 {[%clk 0:00:28]} 49. Rb7 {[%clk 0:00:03]}  Kc6 {[%clk 0:00:28]} 0-1


[Site "https://www.chess.com"]

[Event "Titled Tuesday Blitz November 30 2021"]
[White "Piesik, Piotr"]
[Black "Kollars, Dmitrij"]
[WhiteFideId "1136194"]
[BlackFideId "12909572"]
[WhiteElo "2336"]
[BlackElo "2584"]
[Result "0-1"]
[Round "06"]
[TimeControl "180+1"]
[Date "2021.11.30"]
[WhiteClock "0:02:13"]
[BlackClock "0:02:46"]

1. Nf3 {[%clk 0:02:51]}  Nf6 {[%clk 0:02:58]} 2. g3 {[%clk 0:02:51]}  g6 {[%clk 0:02:57]} 3. Bg2 {[%clk 0:02:51]}  Bg7 {[%clk 0:02:58]} 4. O-O {[%clk 0:02:52]}  O-O {[%clk 0:02:59]} 5. d4 {[%clk 0:02:52]}  d5 {[%clk 0:02:59]} 6. c4 {[%clk 0:02:52]}  Nc6 {[%clk 0:03:00]} 7. cxd5 {[%clk 0:02:51]}  Nxd5 {[%clk 0:03:01]} 8. Nc3 {[%clk 0:02:51]}  e5 {[%clk 0:03:01]} 9. Nxd5 {[%clk 0:02:50]}  e4 {[%clk 0:03:01]} 10. Ng5 {[%clk 0:02:43]}  Qxd5 {[%clk 0:03:01]} 11. Bxe4 {[%clk 0:02:38]}  Qxd4 {[%clk 0:02:59]} 12. Bxc6 {[%clk 0:02:38]}  bxc6 {[%clk 0:02:54]} 13. Qxd4 {[%clk 0:02:28]}  Bxd4 {[%clk 0:02:55]} 14. Nf3 {[%clk 0:02:28]}  Bg7 {[%clk 0:02:52]} 15. Bf4 {[%clk 0:02:27]}  Ba6 {[%clk 0:02:47]} 16. Rac1 {[%clk 0:02:13]}  Bxe2 {[%clk 0:02:46]} 0-1


[Site "https://www.chess.com"]

[Event "Titled Tuesday Blitz November 30 2021"]
[White "Pour Agha Bala, Amirreza"]
[Black "Mirzoev, Azer"]
[WhiteFideId "12572896"]
[BlackFideId "13400304"]
[WhiteElo "2313"]
[BlackElo "2525"]
[Result "1/2-1/2"]
[Round "06"]
[TimeControl "180+1"]
[Date "2021.11.30"]
[WhiteClock "0:00:45"]
[BlackClock "0:00:07"]

1. d4 {[%clk 0:03:00]}  d5 {[%clk 0:02:59]} 2. c4 {[%clk 0:03:00]}  e6 {[%clk 0:02:59]} 3. Nc3 {[%clk 0:02:59]}  a6 {[%clk 0:02:58]} 4. cxd5 {[%clk 0:02:57]}  exd5 {[%clk 0:02:58]} 5. Nf3 {[%clk 0:02:57]}  c6 {[%clk 0:02:58]} 6. e4 {[%clk 0:02:50]}  dxe4 {[%clk 0:02:57]} 7. Nxe4 {[%clk 0:02:51]}  Nf6 {[%clk 0:02:52]} 8. Bg5 {[%clk 0:02:42]}  Bb4+ {[%clk 0:02:52]} 9. Nc3 {[%clk 0:02:42]}  O-O {[%clk 0:02:48]} 10. Bd3 {[%clk 0:02:40]}  Re8+ {[%clk 0:02:45]} 11. Be3 {[%clk 0:02:40]}  Nbd7 {[%clk 0:02:41]} 12. O-O {[%clk 0:02:31]}  Nf8 {[%clk 0:02:40]} 13. Qc2 {[%clk 0:02:25]}  h6 {[%clk 0:02:25]} 14. h3 {[%clk 0:02:24]}  Be6 {[%clk 0:02:23]} 15. Bf5 {[%clk 0:02:21]}  Bxf5 {[%clk 0:02:21]} 16. Qxf5 {[%clk 0:02:22]}  Nd5 {[%clk 0:02:05]} 17. Nxd5 {[%clk 0:02:20]}  Qxd5 {[%clk 0:02:05]} 18. Qxd5 {[%clk 0:02:19]}  cxd5 {[%clk 0:02:05]} 19. Rac1 {[%clk 0:02:17]}  Rac8 {[%clk 0:02:05]} 20. Ne5 {[%clk 0:02:13]}  Ne6 {[%clk 0:02:00]} 21. Nd3 {[%clk 0:02:12]}  Bd6 {[%clk 0:01:58]} 22. g3 {[%clk 0:02:10]}  Rc4 {[%clk 0:01:54]} 23. Rxc4 {[%clk 0:02:06]}  dxc4 {[%clk 0:01:54]} 24. Nc5 {[%clk 0:02:06]}  Nxc5 {[%clk 0:01:54]} 25. dxc5 {[%clk 0:02:04]}  Bxg3 {[%clk 0:01:53]} 26. Rc1 {[%clk 0:02:02]}  Re4 {[%clk 0:01:51]} 27. Kg2 {[%clk 0:01:55]}  Be5 {[%clk 0:01:45]} 28. Rc2 {[%clk 0:01:53]}  f5 {[%clk 0:01:40]} 29. Bc1 {[%clk 0:01:50]}  c3 {[%clk 0:01:30]} 30. bxc3 {[%clk 0:01:49]}  Rc4 {[%clk 0:01:30]} 31. Bb2 {[%clk 0:01:45]}  Rxc5 {[%clk 0:01:28]} 32. Kf3 {[%clk 0:01:39]}  b5 {[%clk 0:01:22]} 33. Rd2 {[%clk 0:01:38]}  Bxc3 {[%clk 0:01:17]} 34. Rd8+ {[%clk 0:01:33]}  Kh7 {[%clk 0:01:14]} 35. Bc1 {[%clk 0:01:32]}  Bf6 {[%clk 0:01:13]} 36. Rd1 {[%clk 0:01:31]}  Rc3+ {[%clk 0:01:10]} 37. Kg2 {[%clk 0:01:29]}  Rc2 {[%clk 0:01:08]} 38. a3 {[%clk 0:01:28]}  Kg6 {[%clk 0:01:04]} 39. Bf4 {[%clk 0:01:25]}  Rc4 {[%clk 0:01:02]} 40. Be3 {[%clk 0:01:18]}  Rc3 {[%clk 0:01:01]} 41. Bc1 {[%clk 0:01:17]}  a5 {[%clk 0:00:54]} 42. Bb2 {[%clk 0:01:16]}  Rb3 {[%clk 0:00:53]} 43. Bxf6 {[%clk 0:01:14]}  Kxf6 {[%clk 0:00:53]} 44. a4 {[%clk 0:01:15]}  bxa4 {[%clk 0:00:51]} 45. Rd5 {[%clk 0:01:13]}  Ra3 {[%clk 0:00:49]} 46. Rxa5 {[%clk 0:01:11]}  Ra1 {[%clk 0:00:43]} 47. h4 {[%clk 0:01:09]}  a3 {[%clk 0:00:40]} 48. Ra6+ {[%clk 0:01:08]}  Ke5 {[%clk 0:00:38]} 49. Ra5+ {[%clk 0:01:07]}  Ke4 {[%clk 0:00:37]} 50. Ra4+ {[%clk 0:01:05]}  Kd3 {[%clk 0:00:35]} 51. h5 {[%clk 0:01:05]}  a2 {[%clk 0:00:35]} 52. Kf3 {[%clk 0:01:03]}  Kc3 {[%clk 0:00:32]} 53. Ra7 {[%clk 0:01:03]}  Kb3 {[%clk 0:00:26]} 54. Rb7+ {[%clk 0:01:02]}  Kc4 {[%clk 0:00:26]} 55. Ra7 {[%clk 0:01:01]}  Kd5 {[%clk 0:00:23]} 56. Kf4 {[%clk 0:01:00]}  Rh1 {[%clk 0:00:12]} 57. Ra5+ {[%clk 0:00:58]}  Ke6 {[%clk 0:00:10]} 58. Ra6+ {[%clk 0:00:56]}  Kf7 {[%clk 0:00:10]} 59. Rxa2 {[%clk 0:00:55]}  Rxh5 {[%clk 0:00:09]} 60. Ke5 {[%clk 0:00:55]}  Kg6 {[%clk 0:00:08]} 61. Ra6+ {[%clk 0:00:53]}  Kh7 {[%clk 0:00:08]} 62. f4 {[%clk 0:00:53]}  Rh1 {[%clk 0:00:04]} 63. Kxf5 {[%clk 0:00:52]}  Rb1 {[%clk 0:00:04]} 64. Ke4 {[%clk 0:00:49]}  Rb5 {[%clk 0:00:04]} 65. f5 {[%clk 0:00:48]}  Rb4+ {[%clk 0:00:05]} 66. Ke5 {[%clk 0:00:48]}  Rb5+ {[%clk 0:00:05]} 67. Ke4 {[%clk 0:00:48]}  Rb1 {[%clk 0:00:06]} 68. Kf4 {[%clk 0:00:46]}  Rf1+ {[%clk 0:00:05]} 69. Ke5 {[%clk 0:00:46]}  Re1+ {[%clk 0:00:05]} 70. Kf4 {[%clk 0:00:45]}  Rf1+ {[%clk 0:00:06]} 71. Ke5 {[%clk 0:00:45]}  Re1+ {[%clk 0:00:06]} 72. Kf4 {[%clk 0:00:45]}  Rf1+ {[%clk 0:00:07]} 1/2-1/2


[Site "https://www.chess.com"]